Cogmind - Beta 16 *** ADVENTURER MODE // 2025.11.30 @ 22:37:03 Player: SearedSteak Result: Destroyed by G-34 Mercenary with Small Laser Performance ------------- Evolutions (1) 500 Regions Visited (2) 400 Robots Destroyed (26) 130 Value Destroyed (718) 718 Prototype IDs (4) 80 Alien Tech Used (0) 0 Bonus (0) 0 TOTAL SCORE: 1828 Bonus ------- None Cogmind --------- Core Integrity 0/400 Matter 300/300 Energy 100/100 System Corruption 0% Temperature Cool (6) Movement Core (100) Ox1 Location -9/Materials Parts ------- > --- POWER (1) -------- (None) > --- PROPULSION (3) --- (None) > --- UTILITY (3) ------ Small Storage Unit > --- WEAPON (2) ------- (None) > --- INVENTORY (8) ---- Ion Engine Large Storage Unit Heavy EM Pulse Gun Medium Laser Medium Laser Medium Laser Peak State ------------ > --- POWER ------------ Light Nuclear Core > --- PROPULSION ------- Aluminum Leg > --- UTILITY ---------- Improved Heat Sink Small Storage Unit Hardened Light Armor Plating > --- WEAPON ----------- Medium Laser Beam Cannon > --- INVENTORY -------- Ion Engine Aluminum Leg Large Storage Unit Hardened Light Armor Plating Heavy EM Pulse Gun Medium Laser Medium Laser Medium Laser [Rating: 13] Favorites ----------- Power Light Nuclear Core Engine Ion Engine Power Core Light Nuclear Core Propulsion Aluminum Leg Leg Aluminum Leg Utility Small Storage Unit Device Improved Heat Sink Storage Small Storage Unit Protection Hardened Light Armor Plating Weapon Beam Cannon Energy Gun Medium Laser Energy Cannon Beam Cannon Build | -11 -10 -9 ------- Run | Yrd Mat Mat Slots Evolved 2 | . . 2 Power . | . . . Propulsion 1 | . . 1 Utility 1 | . . 1 Weapon . | . . . Parts Attached 23 | 5 13 5 Power 2 | 1 1 . Engine 1 | 1 . . Core 1 | . 1 . Reactor . | . . . Propulsion 10 | 2 6 2 Treads . | . . . Leg 10 | 2 6 2 Wheel . | . . . Hover . | . . . Flight . | . . . Utility 4 | 1 1 2 Device 1 | . 1 . Storage 1 | 1 . . Processor . | . . . Hackware . | . . . Protection 2 | . . 2 Artifact . | . . . Weapon 7 | 1 5 1 Energy Gun 5 | 1 3 1 Energy Cannon 2 | . 2 . Ballistic Gun . | . . . Ballistic Cannon . | . . . Launcher . | . . . Special Weapon . | . . . Impact Weapon . | . . . Slashing Weapon . | . . . Piercing Weapon . | . . . Special Melee Weapon . | . . . Unidentified Prototypes . | . . . Parts Lost 8 | . . 8 Power 1 | . . 1 Propulsion 3 | . . 3 Utility 2 | . . 2 Weapon 2 | . . 2 Highest Loss Streak 8 | . . 8 To Critical Strikes . | . . . Average Backups 5 | 2 5 7 Power 1 | 1 1 1 Propulsion . | . . . Utility . | . . 1 Weapon 3 | 1 3 4 Tool/Special . | . . . Unused Backups 5 | . . 5 Power 1 | . . 1 Propulsion . | . . . Utility 1 | . . 1 Weapon 3 | . . 3 Tool/Special . | . . . Average Slot Usage (%) 90 | . 96 76 Engine 1 | . 2 . Core 10 | . 11 10 Leg 24 | . 27 18 Device 9 | . 11 5 Storage 13 | . 14 11 Protection 3 | . . 11 Energy Gun 12 | . 15 5 Energy Cannon 12 | . 11 14 Peak Build Rating 13 | 5 11 13 Average Rating 9 | 4 10 10 On Entrance 5 | . 5 10 Avg Prop Armor Cover (%) 9 | . 9 . Naked Turns . | . . . Heaviest Build 25 | 11 17 25 Greatest Support 30 | 20 20 30 Greatest Overweight (x) 2 | . 1 2 Average Overweight (x) . | . . . Largest Inventory Capacity 8 | 8 8 8 Average Capacity 7 | 7 8 8 Most Carried 8 | 5 8 8 Average Carried 5 | 2 5 7 Final Capacity 8 | 8 8 8 Final Carried 8 | 3 8 6 Class Distribution -------------------- 60% | Scavenger-Mutant 39% | Mutant Dominant Class ---------------- Scavenger-Mutant | -10/Materials Mutant | -9/Materials Resources | -11 -10 -9 ----------- Run | Yrd Mat Mat Matter Collected 440 | 236 144 60 Remotely . | . . . Salvage Created 1061 | . 852 209 Parts 47 | . 43 4 Haulers Intercepted . | . . . Recyclers Shooed 2 | . 2 . Parts Field Recycled . | . . . Retrieved Matter . | . . . Parts Self-Destructed . | . . . Prevented . | . . . Parts Restored . | . . . Kills | -11 -10 -9 ------- Run | Yrd Mat Mat Combat Hostiles Destroyed 18 | . 13 5 Guns 8 | . 8 . Cannons 8 | . 3 5 Classes Destroyed 6 | . 5 1 Worker 3 | . 3 . Tunneler 1 | . 1 . Recycler 2 | . 2 . Watcher 2 | . 2 . Grunt 17 | . 13 4 Duelist 1 | . . 1 Best Kill Streak 3 | . 3 2 Combat Bots Only 2 | . 2 2 Max Kills in Single Turn 2 | . 2 1 Gunslinging . | . . . Exploded . | . . . Melee . | . . . Uniques/NPCs Destroyed . | . . . Combat | -11 -10 -9 -------- Run | Yrd Mat Mat Hostile Shots Fired 258 | . 69 189 Missed 78 | . 26 52 Hits 180 | . 43 137 Melee 3 | . . 3 Projectile 177 | . 43 134 Critical Strikes 7 | . 1 6 Damage Taken 1760 | . 401 1359 Core 491 | . 87 404 Absorbed by Shields . | . . . Ignored by Resistances 533 | . 123 410 Regen/Repaired (Parts) 64 | . 64 . Core Remaining (%) 82 | 100 65 . Volleys Fired 68 | . 56 12 Largest 2 | . 2 2 Hottest 120 | . 120 120 Shots Fired 134 | . 110 24 Gun 88 | . 85 3 Cannon 46 | . 25 21 Launcher . | . . . Special . | . . . Kinetic . | . . . Thermal 134 | . 110 24 Explosive . | . . . Electromagnetic . | . . . Robot Hit Streak 23 | . 23 10 Robot Miss Streak 2 | . 2 2 Penetration Max . | . . . Secondary Targets 2 | . 2 . Max Gunslinging Chain 1 | . 1 . Shots Hit Robots 98 | . 81 17 Core Hits 41 | . 34 7 Critical Kills . | . . . Critical Parts Destroyed . | . . . Critical Strikes 2 | . 2 . Burn 2 | . 2 . Melee Attacks . | . . . Impact . | . . . Slashing . | . . . Piercing . | . . . Sneak Attacks . | . . . Combat Hostiles . | . . . Follow-up Attacks . | . . . Damage Inflicted 1418 | . 1131 287 Guns 802 | . 777 25 Cannons 596 | . 335 261 Explosions . | . . . Melee . | . . . Ramming 20 | . 19 1 Kinetic . | . . . Thermal 1398 | . 1112 286 Explosive . | . . . Electromagnetic . | . . . Impact . | . . . Slashing . | . . . Piercing . | . . . Highest Corruption 1 | . 1 . Average Corruption 1 | . 1 . Corruption Purged . | . . . Corruption Blocked . | . . . Effects 3 | . 3 . Heat Flow Errors 1 | . 1 . Energy Discharges 2 | . 2 . Overload Shots . | . . . Overflow Damage 5 | . 5 . Projectiles 5 | . 5 . Explosions . | . . . Melee . | . . . Knockbacks . | . . . Impact . | . . . Kinetic . | . . . Secondary . | . . . Self-Inflicted Damage . | . . . Shots . | . . . Rammed . | . . . Targets Rammed 4 | . 3 1 Kicked 4 | . 3 1 Crushed . | . . . Highest Temperature 340 | . 340 180 Average Temperature 69 | . 78 51 Received Heat Transfer 1317 | . 321 996 Effects 2 | . 2 . Shutdowns 1 | . 1 . Short Circuit 1 | . 1 . Siege Activations . | . . . Martial Activations . | . . . Shielding Activations . | . . . Robots Disrupted . | . . . Combat Hostiles . | . . . Robots Corrupted . | . . . Combat Hostiles . | . . . Parts Fried . | . . . Impact Corruptions . | . . . Robots Melted 2 | . 2 . Combat Hostiles 2 | . 2 . Parts Melted 8 | . 7 1 Heat Transferred 3585 | . 2956 629 Parts Sabotaged . | . . . Parts Stolen . | . . . Parts Stripped . | . . . Power Chain Reactions . | . . . Alert | -11 -10 -9 ------- Run | Yrd Mat Mat Maximum Alert Level . | . . . Low Security (%) 100 | 100 100 100 Level 1 . | . . . Level 2 . | . . . Level 3 . | . . . Level 4 . | . . . Level 5 . | . . . High Security . | . . . Max Security . | . . . Peak Influence 150 | . 150 53 Initial . | . . . Average 33 | . 43 16 Influence Increases 679 | . 471 208 Destroy 0b10 Robot/C 360 | . 260 100 Destroy 0b10 Robot/NC 40 | . 40 . Destroy Leader 74 | . 64 10 Successful Hack 38 | . 30 8 Destroy Structure 2 | . 2 . Lose Combat Pursuer 165 | . 75 90 Influence Decreases 679 | . 471 208 Time Decay 646 | . 471 175 Lost Part 33 | . . 33 Squads Dispatched 6 | . 3 3 Investigation 5 | . 3 2 Extermination . | . . . Reinforcement 1 | . . 1 Assault . | . . . Garrison . | . . . Intercept . | . . . Searches Triggered . | . . . Construction Impeded . | . . . Haulers Reinforced . | . . . Active Scanning Responses . | . . . Cargo Convoy Interrupts . | . . . Stealth | -11 -10 -9 --------- Run | Yrd Mat Mat Distress Signals 1 | . 1 . Communications Jammed . | . . . Distress Signals . | . . . Times Spotted 45 | . 25 20 Peak Tracking Total 13 | . 6 13 Tactical Retreats 6 | . 3 3 Traps | -11 -10 -9 ------- Run | Yrd Mat Mat Traps Triggered 4 | . 3 1 Indirectly . | . . . Trap Hack Attempts . | . . . Triggered . | . . . Disarmed 10 | . 10 . Reprogrammed . | . . . Reused . | . . . Traps Extracted . | . . . Installed . | . . . Triggered . | . . . Machines | -11 -10 -9 ---------- Run | Yrd Mat Mat Machines Disabled . | . . . Max in Single Turn . | . . . Machines Repaired . | . . . Machines Dismantled . | . . . Machines Sabotaged . | . . . Overloaded Fab Kills . | . . . Hacking | -11 -10 -9 --------- Run | Yrd Mat Mat Machines Accessed 8 | . 7 1 Terminals 5 | . 4 1 Fabricators . | . . . Repair Stations 1 | . 1 . Recycling Units 2 | . 2 . Scanalyzers . | . . . Garrison Access . | . . . Total Hacks 31 | . 27 4 Successful 24 | . 23 1 Failed 7 | . 4 3 Catastrophic 1 | . . 1 Database Lockouts . | . . . Manual . | . . . Terminals 19 | . 15 4 Fabricators . | . . . Repair Stations 4 | . 4 . Recycling Units 8 | . 8 . Scanalyzers . | . . . Garrison Access . | . . . Terminal Hacks 13 | . 12 1 Record 6 | . 5 1 Prototype ID Bank 2 | . 2 . Emergency Access Points 1 | . 1 . Alert Level 1 | . 1 . Locate Traps 1 | . 1 . Disarm Traps 2 | . 2 . Fabricator Hacks . | . . . Repair Station Hacks 4 | . 4 . Scan Component 2 | . 2 . Repair 2 | . 2 . Recycling Unit Hacks 7 | . 7 . Process 2 | . 2 . Report Inventory 1 | . 1 . Retrieve Matter 1 | . 1 . Retrieve Components 3 | . 3 . Scanalyzer . | . . . Garrison Access Hacks . | . . . Unauthorized Hacks . | . . . Terminals . | . . . Fabricators . | . . . Repair Stations . | . . . Recycling Units . | . . . Scanalyzers . | . . . Garrison Access . | . . . Data Cores Recovered . | . . . Used . | . . . Hacking Detections 4 | . 3 1 Full Trace Events 4 | . 3 1 Feedback Events . | . . . Feedback Blocked . | . . . Robot Schematics Acquired . | . . . Robots Built . | . . . Authchips . | . . . Time . | . . . Total Robot Build Rating . | . . . Part Schematics Acquired . | . . . Parts Built . | . . . Authchips . | . . . Time . | . . . Total Part Build Rating . | . . . Part Studies Acquired . | . . . Parts Repaired 2 | . 2 . Time 26 | . 26 . Parts Recycled . | . . . Recycled Matter . | . . . Retrieved Matter 127 | . 127 . Retrieved Components 10 | . 10 . Parts Scanalyzed . | . . . Part Schematics Acquired . | . . . Parts Damaged . | . . . Bothacking | -11 -10 -9 ------------ Run | Yrd Mat Mat Used RIF Installer . | . . . Robots Hacked . | . . . Non-combat . | . . . Combat . | . . . Robot Hacks Applied . | . . . Relay Couplers Released . | . . . Fabnet Peak Effective % . | . . . Robots Rewired . | . . . Allies Hacked . | . . . Hacks Repelled . | . . . Allies | -11 -10 -9 -------- Run | Yrd Mat Mat Total Allies . | . . . Largest Group . | . . . Highest-Rated Group . | . . . Highest-Rated Ally . | . . . Total Orders . | . . . Ally Attacks . | . . . Total Damage . | . . . Kills . | . . . Allies Corrupted . | . . . Allies Melted . | . . . Intel | -11 -10 -9 ------- Run | Yrd Mat Mat Active Infowar (turns) . | . . . Robot Analysis Total . | . . . Derelict Logs Recovered . | . . . Drone Launches . | . . . Drone Recoveries . | . . . Exploration | -11 -10 -9 ------------- Run | Yrd Mat Mat Turns Passed 1883 | 92 1227 564 Spaces Moved 1038 | 79 709 250 Core 21 | 21 . . Treads . | . . . Legs 1017 | 58 709 250 Wheels . | . . . Hover . | . . . Flight . | . . . Fastest Speed 50 | 50 120 120 Average Speed 131 | 101 123 163 Slowest Speed 260 | 120 190 260 Overloaded Moves . | . . . Propulsion Burnouts . | . . . Robots Hopped . | . . . Potential Cave-ins . | . . . Cave-ins Triggered . | . . . Exploration Rate (%) 44 | 5 95 32 Regions Visited 2 Branch Regions . Pre-discovered Areas . | . . . Known Exits Taken . | . . . Unknown Exits Taken 2 | 1 1 . Scrap Searched . | . . . Spaces Dug . | . . . Terrain Destroyed . | . . . Melee . | . . . Projectile . | . . . AOE . | . . . Terrain Rammed . | . . . Walls Destroyed . | . . . Machines Disabled . | . . . Actions | -11 -10 -9 --------- Run | Yrd Mat Mat Total 1425 | 90 951 384 Wait 251 | . 144 107 Move 1036 | 78 708 250 Hop . | . . . Pick Up 29 | 7 18 4 Fast Attach 2 | 1 . 1 Attach 12 | 4 5 3 Detach . | . . . Swap 10 | . 8 2 Drop 13 | . 9 4 Fire 68 | . 56 12 Melee . | . . . Ram . | . . . Kick 4 | . 3 1 Crush . | . . . Escape Stasis . | . . . Rewire . | . . . Trap . | . . . Miscellaneous . | . . . Route ------- -11/Scrapyard -10/Materials (discovered 5 exits: *Mat x3 / [*Min x2]) -9/Materials (discovered 1 exit: [*Mat]) History --------- Turn | Location | Event 9 | -11/Scrapyard | Discovered new exit (range 16) 93 | -11/Scrapyard | Entered Materials 127 | -10/Materials | Discovered new exit (range 13) 304 | -10/Materials | Build established: Mutant 572 | -10/Materials | Discovered new exit (range 16) 640 | -10/Materials | Build established: Scavenger-Mutant 652 | -10/Materials | Discovered new exit (range 14) 709 | -10/Materials | Discovered new exit (range 13) 922 | -10/Materials | Discovered new exit (range 15) 1037 | -10/Materials | Repaired Aluminum Leg 1050 | -10/Materials | Repaired Aluminum Leg 1320 | -10/Materials | Entered another Materials area 1320 | -9/Materials | Evolved 2 slots: Propulsion x1, Utility x1 1517 | -9/Materials | Discovered new exit (range 5) 1594 | -9/Materials | Build established: Mutant 1863 | -9/Materials | Core integrity fell below 50% 1875 | -9/Materials | Core integrity fell below 20% 1884 | -9/Materials | Destroyed by G-34 Mercenary with Small Laser Last Messages --------------- Critical hit (Destroy). Triggered Alarm Trap. An alarm sounds. ALERT: Alarm triggered, dispatching investigation squad. Critical hit (Burn: +37). O-16 Technician uses terminal to summon reinforcements. ALERT: Hostiles spotted, dispatching reinforcements to Terminal M012. O-16 Technician locks terminal. Critical hit (Burn: +37). U-05 Engineer lays Concrete. Lgt. Nuclear Core destroyed. Beam Cannon destroyed. Aluminum Leg destroyed. Hrd. Light Armor Plating destroyed. Aluminum Leg destroyed. Med. Laser destroyed. Critical hit (Burn: +37). Map ----- +----------------------------------------------------+ | ?????????????????????????????????????????????????? | | ?????????????????????????????????????????????????? | | ?????????????????????????????????????????????????? | | ?????????????????????????????????????????????????? | | ?????????????????????????????????????????????????? | | ?????????????????????????????????????????????????? | | ?????????????????????????????????????????????????? | | ?????????????????????????????????????????????????? | | ?????????????????????????????????????????????????? | | ?????????????????????????????????????????????????? | | ?????????????????????????????????????????????????? | | ?????????????????????????????????????????????????? | | ?????????????????????????????????????????????????? | | ?????????????????????????????????????????????????? | | ?????????????????????????????????????????????????? | | ?????????????????????????????????????????????????? | | ????????????????????????????????????????????###### | | ????????????????????????????????????????????# | | ????????????????????????????????????????????#""" | | ????????????????????????????????????????????#""" | | ????????????????????????????????????????????#""" | | ????????????????????????????????????????????# | | ????????????????????????????#######?????????#""" | | ????????????????????????????# #?????????#""" | | ???????????????????????###### #?????????#""" | | ???????????????????????# @g # T #?????????# | | ???????????????????????#g"" g #?????????###### | | ???????????????????????# T" #g #??????????????? | | ???????????????????????# "" ## ##???#####??????? | | ???????????????????????# ## #?? #??????? | | ???????????????????????# ## # #??????? | | ???????????????????????####### + #??????? | | ?????????????????????????????# # """ #??????? | | ?????????????????????????????# #??"""" ????????? | | ?????????????????????????????# #????""?????????? | | ?????????????????????????????# #???????????????? | | ?????????????????????????????# #???????????????? | | ?????????????????????????????# #???????????????? | | ?????????????????????????????# ######??????????? | | ?????????????????????????????# ##"""#??????????? | | ?????????????????????????????# ##"R"#??????????? | | ?????????????????????????????# ##" "#########??? | | ?????????????????????????????# #??? | | ?????????????????????????????# #??? | | ?????????????????????????????# [ #### | | ?????????????????????????????# """ """ # | | ?????????????????????????????# """ """ #! | | ?????????????????????????????# """ """ # | | ?????????????????????????????# """ """ # /! | | ????????????????????????????# " # /! | +----------------------------------------------------+ Best States ------------- Heat Dissipation 42 Energy Generation 14 Energy Capacity 250 Matter Stores 300 Matter Capacity 300 Sight Range 16 Terrain Scan Density 10 Armor Coverage 300 Resistance: KI 20 Resistance: TH 20 Resistance: EX 20 Resistance: EM 20 Resistance: I 20 Resistance: S 20 Resistance: P 20 Evasion (%) 55 Offensive Hacking 10 Item Schematics ----------------- None Robot Schematics ------------------ None Fabricated ------------ Nothing Repaired ---------- Aluminum Leg | 58% | -10/Materials Aluminum Leg | 70% | -10/Materials Studied --------- None Alien Tech Used ----------------- None Achievements -------------- None Challenges ------------ None Game ------ Seed ImpulseImpactExtractor Manual? 0 Play Time 00:23:59 Cumulative 8.5 hours Start 2025.11.30 @ 22:09:47 End 2025.11.30 @ 22:37:03 Sessions 1 Manual Loads 0 Difficulty Adventurer Special Mode None Game No. 27 Rogue 19 Adventurer 8 Explorer 0 Win Type - Total 0 Types 0/0/0/0/0/0/0/0/0/0 Lore% 3 Gallery% 10 Achievement% 8 Wizard Run 0 Options --------- Layout 1 ASCII 0 Keyboard 0 Movement Mouse Keybinds 0 Fullscreen 1 Font 24/X11 Map View 50x35 Zoom Use 0% Tactical HUD 0 Map Filters NONE Filters NONE Steam 1 RUN: 4ffa7ad9-72b9-4a9a-bf52-938b54aa8af7